bitfinex/quotes_SOLUSD_20220129
["timestamp","ask_amount","ask_price","bid_price","bid_amount"]
[1643439350412,0.25,95.439,95.355,1.4348441]
[1643439350619,0.25,95.439,95.356,40.93962899]
[1643439351017,15.733,95.43,95.356,40.93962899]
[1643439351214,4.04966863,95.429,95.356,40.93962899]
[1643439351412,6.0,95.42,95.356,40.93962899]
[1643439351613,28.9442,95.419,95.351,1.4348441]
[1643439351812,28.9442,95.419,95.349,1.4348441]
[1643439352014,28.9442,95.419,95.348,1.4348441]
[1643439352015,23.3785,95.418,95.348,1.4348441]
[1643439352215,0.25,95.418,95.35,2.51688109]
[1643439352418,6.0,95.408,95.357,1.4348441]
[1643439352615,0.25,95.418,95.359,1.4348441]
[1643439352616,18.85590685,95.407,95.359,1.4348441]
[1643439352817,18.85590685,95.407,95.358,40.36101368]
[1643439353013,6.0,95.397,95.358,38.92616958]
[1643439353515,0.25,95.396,95.358,38.92616958]
[1643439353717,0.25,95.396,95.358,40.36101368]
[1643439353917,0.25,95.396,95.358,38.92616958]
[1643439354317,0.25,95.396,95.353,1.4348441]
[1643439354718,0.25,95.396,95.347,1.4348441]
[1643439355723,0.25,95.396,95.346,1.4348441]
[1643439355923,6.25,95.396,95.347,1.4348441]
[1643439356521,6.25,95.396,95.348,1.4348441]
[1643439357320,6.25,95.396,95.345,1.4348441]
[1643439357722,6.25,95.396,95.343,1.4348441]
[1643439357922,6.25,95.396,95.347,1.4348441]
[1643439358529,6.25,95.396,95.342,1.4348441]
[1643439358723,24.3892,95.395,95.34,1.4348441]
[1643439358922,24.3892,95.395,95.339,1.4348441]
[1643439359124,6.0,95.385,95.339,1.4348441]
[1643439359423,0.25,95.384,95.338,1.4348441]
[1643439359723,4.29966863,95.384,95.339,41.84670009]
[1643439360123,6.0,95.374,95.339,41.84670009]
[1643439360323,0.25,95.373,95.34,1.4348441]
[1643439360524,0.25,95.373,95.339,41.84670009]
[1643439361537,6.0,95.374,95.339,41.84670009]
[1643439361726,6.0,95.374,95.339,43.28154419]
[1643439361929,0.25,95.373,95.339,43.28154419]
[1643439362131,0.25,95.373,95.341,1.4348441]
[1643439362327,0.25,95.373,95.343,1.4348441]
[1643439362928,0.25,95.384,95.343,1.4348441]
[1643439363128,0.25,95.384,95.344,1.4348441]
[1643439363328,6.25,95.384,95.345,1.4348441]
[1643439364328,6.25,95.384,95.344,1.4348441]
[1643439364530,6.25,95.384,95.341,1.4348441]
[1643439364730,6.25,95.384,95.344,1.4348441]
[1643439364930,6.25,95.384,95.342,1.4348441]
[1643439365130,6.25,95.384,95.343,1.4348441]
[1643439365630,6.25,95.384,95.344,1.4348441]
[1643439365830,6.25,95.384,95.341,1.4348441]
[1643439366930,6.25,95.384,95.342,1.4348441]
[1643439367732,6.25,95.384,95.339,43.28154419]
[1643439368232,6.25,95.384,95.339,41.84670009]
[1643439369032,6.25,95.384,95.338,1.4348441]
[1643439369232,6.25,95.384,95.337,1.4348441]
[1643439369432,6.25,95.384,95.338,1.4348441]
[1643439369833,6.25,95.384,95.336,1.4348441]
[1643439370131,6.25,95.384,95.292,104.6]
[1643439370132,6.25,95.384,95.326,1.4348441]
[1643439370333,6.25,95.384,95.324,1.4348441]
[1643439370334,24.5284,95.383,95.324,1.4348441]
[1643439370533,6.0,95.373,95.325,1.4348441]
[1643439370836,15.06,95.37,95.31,1.4348441]
[1643439371032,21.06,95.37,95.306,1.4348441]
[1643439371236,0.25,95.369,95.299,1.4348441]
[1643439371535,6.0,95.362,95.297,39.65860321]
[1643439371735,6.0,95.36,95.297,39.65860321]
[1643439371935,6.0,95.359,95.296,1.4348441]
[1643439372136,6.0,95.351,95.296,1.4348441]
[1643439372336,0.25,95.35,95.295,1.4348441]
[1643439372740,24.0089,95.35,95.295,1.4348441]
[1643439372940,18.52548265,95.349,95.294,1.4348441]
[1643439373139,18.52548265,95.349,95.293,43.70532367]
[1643439373338,0.25,95.348,95.293,43.70532367]
[1643439374839,0.25,95.348,95.29,1.4348441]
[1643439375840,0.25,95.348,95.291,36.53047345]
[1643439376839,0.25,95.348,95.292,1.4348441]
[1643439377843,0.25,95.348,95.291,36.53047345]
[1643439377844,0.25,95.348,95.294,1.4348441]
[1643439378042,0.25,95.348,95.291,1.4348441]
[1643439379041,0.25,95.348,95.292,34.97945631]
[1643439379241,0.25,95.348,95.292,33.54461221]
[1643439380042,0.25,95.348,95.292,34.97945631]
[1643439380242,6.0,95.36,95.304,1.4348441]
[1643439380448,0.25,95.359,95.307,1.4348441]
[1643439380644,0.25,95.359,95.304,1.4348441]
[1643439381143,0.25,95.359,95.305,1.4348441]
[1643439381343,19.95981659,95.36,95.305,1.4348441]
[1643439381544,6.0,95.35,95.303,1.4348441]
[1643439381943,6.0,95.35,95.302,1.4348441]
[1643439382143,6.0,95.35,95.301,1.4348441]
[1643439382543,6.0,95.35,95.299,1.4348441]
[1643439382744,0.25,95.349,95.299,1.4348441]
[1643439382943,6.25,95.349,95.299,1.4348441]
[1643439383144,6.25,95.349,95.3,1.4348441]
[1643439384178,0.25,95.349,95.311,40.21551336]
[1643439384445,0.25,95.358,95.311,40.21551336]
[1643439385047,0.25,95.358,95.311,41.65035746]
[1643439385248,21.85904727,95.358,95.312,1.4348441]
[1643439385850,21.85904727,95.358,95.313,1.4348441]
[1643439386051,21.85904727,95.358,95.311,40.21551336]
[1643439386449,21.85904727,95.358,95.311,41.65035746]
[1643439387052,21.85904727,95.358,95.309,1.4348441]
[1643439387352,20.35904727,95.358,95.305,1.4348441]
[1643439387551,20.35904727,95.358,95.304,1.4348441]
[1643439387952,20.35904727,95.358,95.305,1.4348441]
[1643439388157,20.35904727,95.358,95.307,1.4348441]
[1643439388355,20.35904727,95.358,95.308,1.4348441]
[1643439388554,20.35904727,95.358,95.311,1.4348441]
[1643439388955,20.35904727,95.358,95.312,1.4348441]
[1643439389355,0.25,95.357,95.312,1.4348441]
[1643439389556,6.0,95.348,95.312,1.4348441]
[1643439389856,0.25,95.347,95.312,1.4348441]
[1643439390258,0.25,95.347,95.307,1.4348441]
[1643439390958,0.25,95.347,95.306,1.4348441]
[1643439391160,0.25,95.347,95.307,1.4348441]
[1643439391459,0.25,95.347,95.306,1.4348441]
[1643439392462,0.25,95.347,95.307,1.4348441]
[1643439393362,0.25,95.347,95.305,43.08761322]
[1643439393363,0.25,95.347,95.312,1.4348441]
[1643439393562,0.25,95.347,95.305,43.08761322]
[1643439393563,0.25,95.347,95.313,1.4348441]
[1643439393763,24.0683,95.359,95.313,1.4348441]
[1643439393964,24.0683,95.359,95.315,1.4348441]
[1643439394563,16.53777045,95.358,95.311,1.4348441]
[1643439394763,6.0,95.349,95.311,1.4348441]
[1643439394964,6.0,95.348,95.31,1.4348441]
[1643439395164,6.25,95.348,95.313,1.4348441]
[1643439395564,0.25,95.348,95.311,1.4348441]
[1643439395764,0.25,95.357,95.311,1.4348441]
[1643439396165,0.25,95.357,95.315,1.4348441]
[1643439396364,0.25,95.357,95.316,1.4348441]
[1643439396767,1.4531299,95.414,95.316,1.4348441]
[1643439396768,15.738,95.4,95.317,0.25]
[1643439396968,47.4955,95.406,95.32,1.4348441]
[1643439397166,6.0,95.39,95.333,1.4348441]
[1643439397465,21.11934187,95.395,95.336,1.4348441]
[1643439397665,21.11934187,95.395,95.336,12.0948441]
[1643439397866,6.0,95.385,95.336,12.0948441]
[1643439398071,6.0,95.385,95.336,10.66]
[1643439398269,0.25,95.384,95.336,10.66]
[1643439398671,6.25,95.384,95.336,10.66]
[1643439399402,0.25,95.384,95.336,10.66]
[1643439399798,0.25,95.393,95.339,1.4348441]
[1643439399999,0.25,95.393,95.34,1.4348441]
[1643439400600,0.25,95.393,95.341,1.4348441]
[1643439401104,6.0,95.384,95.336,1.4348441]
[1643439401301,0.25,95.383,95.335,1.4348441]
[1643439402103,24.5115,95.394,95.337,1.4348441]
[1643439402303,24.5115,95.394,95.338,1.4348441]
[1643439402504,6.0,95.384,95.338,1.4348441]
[1643439402704,6.0,95.384,95.336,1.4348441]
[1643439402905,6.0,95.384,95.334,1.4348441]
[1643439403106,15.735,95.42,95.344,6.0]
[1643439403306,17.2034299,95.434,95.352,1.4348441]
[1643439403307,47.1049,95.419,95.352,1.4348441]
[1643439403508,47.1049,95.419,95.329,24.3179]
[1643439403509,47.1049,95.419,95.35,1.4348441]
[1643439403705,6.0,95.409,95.345,1.4348441]
[1643439404106,19.81842779,95.408,95.343,1.4348441]
[1643439404305,19.81842779,95.408,95.341,1.4348441]
[1643439404508,6.0,95.398,95.341,1.4348441]
[1643439404707,6.0,95.398,95.337,1.4348441]
[1643439404907,8.95669142,95.397,95.331,1.4348441]
[1643439405107,24.567,95.396,95.331,1.4348441]
[1643439405306,24.567,95.396,95.33,1.4348441]
[1643439405506,6.0,95.386,95.33,1.4348441]
[1643439405707,4.79383911,95.385,95.33,43.28490407]
[1643439405907,5.04383911,95.385,95.33,43.28490407]
[1643439406107,6.0,95.375,95.33,43.28490407]
[1643439406306,0.25,95.374,95.33,43.28490407]
[1643439407307,0.25,95.374,95.331,1.4348441]
[1643439407507,6.0,95.375,95.331,1.4348441]
[1643439407708,6.0,95.375,95.333,1.4348441]
[1643439408308,4.79383911,95.385,95.333,1.4348441]
[1643439408508,6.0,95.375,95.334,1.4348441]
[1643439408707,4.79383911,95.385,95.332,1.4348441]
[1643439408907,0.25,95.384,95.332,1.4348441]
[1643439409107,0.25,95.384,95.334,1.4348441]
[1643439409510,0.25,95.384,95.335,1.4348441]
[1643439409910,6.0,95.375,95.335,1.4348441]
[1643439410110,6.0,95.375,95.334,1.4348441]
[1643439410309,0.25,95.374,95.336,1.4348441]
[1643439410811,0.25,95.374,95.337,1.4348441]
[1643439411212,0.25,95.374,95.34,1.4348441]
[1643439411413,0.25,95.384,95.34,1.4348441]
[1643439411812,0.25,95.385,95.34,13.6248441]
[1643439412013,0.25,95.385,95.341,1.4348441]
[1643439412214,0.25,95.385,95.342,1.4348441]
[1643439412814,6.25,95.385,95.342,1.4348441]
[1643439413013,0.25,95.385,95.342,1.4348441]
[1643439413416,0.25,95.394,95.342,1.4348441]
[1643439413814,0.25,95.394,95.343,1.4348441]
[1643439414017,6.0,95.385,95.343,1.4348441]
[1643439414224,6.0,95.385,95.342,1.4348441]
[1643439414420,0.25,95.384,95.342,1.4348441]
[1643439415021,0.25,95.384,95.341,1.4348441]
[1643439415422,0.25,95.384,95.342,1.4348441]
[1643439416224,6.0,95.385,95.342,1.4348441]
[1643439416423,0.25,95.384,95.34,1.4348441]
[1643439416623,0.25,95.384,95.342,1.4348441]
[1643439417825,0.25,95.384,95.341,1.4348441]
[1643439418848,0.25,95.384,95.34,1.4348441]
[1643439419047,24.6947,95.384,95.34,1.4348441]
[1643439419247,24.6947,95.384,95.339,1.4348441]
[1643439419447,24.6947,95.384,95.34,35.87171554]
[1643439420451,24.6947,95.384,95.34,34.43687144]
[1643439420649,24.6947,95.384,95.34,35.87171554]
[1643439420849,24.6947,95.384,95.34,1.4348441]
[1643439421049,24.6947,95.384,95.343,1.4348441]
[1643439421450,6.0,95.374,95.343,1.4348441]
[1643439421652,6.0,95.374,95.341,1.4348441]
[1643439421852,5.40759427,95.373,95.335,1.4348441]
[1643439422054,6.0,95.363,95.329,1.4348441]
[1643439422252,0.25,95.362,95.327,1.4348441]
[1643439422453,0.25,95.362,95.329,1.4348441]
[1643439422953,0.25,95.362,95.327,1.4348441]
[1643439423153,0.25,95.362,95.325,1.4348441]
[1643439423352,0.25,95.362,95.287,23.1181]
[1643439423353,23.3215,95.362,95.324,1.4348441]
[1643439423552,15.7347716,95.351,95.324,1.4348441]
[1643439423753,15.7347716,95.351,95.322,1.4348441]
[1643439423955,0.25,95.35,95.32,1.4348441]
[1643439424453,0.25,95.35,95.317,1.4348441]
[1643439424653,0.25,95.35,95.319,1.4348441]
[1643439424853,6.0,95.341,95.319,1.4348441]
[1643439425257,0.25,95.34,95.319,1.4348441]
[1643439425654,0.25,95.34,95.321,1.4348441]
[1643439425855,15.7347716,95.351,95.321,1.4348441]
[1643439426056,15.7347716,95.351,95.325,1.4348441]
[1643439426457,15.7347716,95.351,95.321,1.4348441]
[1643439427055,15.7347716,95.351,95.312,1.4348441]
[1643439427255,15.7347716,95.351,95.265,26.73824547]
[1643439427256,24.2296,95.35,95.3,1.4348441]
[1643439427456,24.2296,95.35,95.299,1.4348441]
[1643439427862,24.2296,95.35,95.297,1.4348441]
[1643439429557,24.2296,95.35,95.3,1.4348441]
[1643439429768,6.0,95.34,95.3,1.4348441]
[1643439429959,6.0,95.34,95.297,1.4348441]
[1643439430258,0.25,95.339,95.296,1.4348441]
[1643439430758,0.25,95.339,95.293,1.4348441]
[1643439431158,25.1517,95.339,95.291,1.4348441]
[1643439431360,25.1517,95.339,95.294,1.4348441]
[1643439431557,25.1517,95.339,95.293,1.4348441]
[1643439431758,25.1517,95.339,95.29,1.4348441]
[1643439431960,25.1517,95.339,95.265,23.7824]
[1643439431961,6.0,95.329,95.281,1.4348441]
[1643439432159,6.0,95.329,95.278,1.4348441]
[1643439432358,22.9262,95.328,95.276,1.4348441]
[1643439432557,22.9262,95.328,95.275,1.4348441]
[1643439432558,6.0,95.318,95.275,1.4348441]
[1643439432757,5.92080388,95.316,95.275,1.4348441]
[1643439433162,6.0,95.306,95.269,1.4348441]
[1643439433358,0.25,95.305,95.268,1.4348441]
[1643439433559,23.8718,95.305,95.268,1.4348441]
[1643439433759,23.8718,95.305,95.264,1.4348441]
[1643439434060,6.0,95.295,95.264,1.4348441]
[1643439434261,0.25,95.294,95.265,43.37048104]
[1643439434459,0.25,95.294,95.268,1.4348441]
[1643439435059,0.25,95.294,95.267,1.4348441]
[1643439435461,0.25,95.305,95.259,1.4348441]
[1643439435662,25.0499,95.305,95.257,1.4348441]
[1643439435862,25.0499,95.305,95.223,14.20110235]
[1643439435863,25.0499,95.305,95.256,1.4348441]
[1643439436063,15.7347716,95.294,95.255,1.4348441]
[1643439436263,0.25,95.293,95.249,1.4348441]
[1643439436861,6.0,95.284,95.249,1.4348441]
[1643439437061,6.0,95.284,95.248,1.4348441]
[1643439437263,0.25,95.283,95.247,1.4348441]
[1643439437763,0.25,95.283,95.244,1.4348441]
[1643439437963,0.25,95.283,95.245,1.4348441]
[1643439438167,0.25,95.283,95.246,1.4348441]
[1643439438364,0.25,95.293,95.245,1.4348441]
[1643439438565,6.0,95.284,95.245,1.4348441]
[1643439438865,0.25,95.283,95.241,1.4348441]
[1643439439064,0.25,95.283,95.237,1.4348441]
[1643439439065,6.25,95.283,95.237,1.4348441]
[1643439439266,6.25,95.283,95.236,1.4348441]
[1643439439465,6.25,95.283,95.21,18.6458306]
[1643439439466,24.3481,95.282,95.229,1.4348441]
[1643439439968,24.3481,95.282,95.222,1.4348441]
[1643439439969,5.92080388,95.271,95.222,1.4348441]
[1643439440266,0.25,95.27,95.222,1.4348441]
[1643439440670,0.25,95.27,95.232,6.0]
[1643439440867,0.25,95.27,95.229,7.4348441]
[1643439441066,0.25,95.27,95.229,6.0]
[1643439441266,0.25,95.27,95.224,1.4348441]
[1643439441467,18.74484475,95.281,95.224,1.4348441]
[1643439442066,6.0,95.271,95.221,1.4348441]
[1643439442267,0.25,95.27,95.219,45.45120831]
[1643439442466,0.25,95.27,95.219,46.88605241]
[1643439443070,0.25,95.27,95.22,1.4348441]
[1643439443270,0.25,95.27,95.221,1.4348441]
[1643439443467,18.49484475,95.281,95.221,1.4348441]
[1643439443468,0.25,95.28,95.221,1.4348441]
[1643439443667,0.25,95.28,95.222,1.4348441]
[1643439444269,0.25,95.28,95.221,1.4348441]
[1643439444869,0.25,95.28,95.22,1.4348441]
[1643439445072,0.25,95.28,95.221,1.4348441]
[1643439446072,6.0,95.271,95.215,1.4348441]
[1643439446372,0.25,95.27,95.217,1.4348441]
[1643439446572,0.25,95.27,95.196,2.93678235]
[1643439446573,0.25,95.27,95.216,1.4348441]
[1643439446872,6.0,95.271,95.22,1.4348441]
[1643439447274,6.0,95.271,95.221,1.4348441]
[1643439447472,6.0,95.271,95.222,1.4348441]
[1643439447874,6.0,95.271,95.221,1.4348441]
[1643439448274,0.25,95.27,95.217,1.4348441]
[1643439448576,0.25,95.27,95.18,33.32599237]
[1643439448577,23.7004,95.27,95.216,1.4348441]
[1643439448774,23.7004,95.27,95.22,1.4348441]
[1643439448975,6.0,95.26,95.22,1.4348441]
[1643439449175,6.0,95.26,95.221,35.53615497]
[1643439449379,6.0,95.26,95.229,1.4348441]
[1643439449576,6.0,95.271,95.229,1.4348441]
[1643439449776,6.0,95.271,95.221,35.53615497]
[1643439449777,6.0,95.271,95.227,1.4348441]
[1643439449975,6.0,95.271,95.23,1.4348441]
[1643439450276,6.0,95.271,95.218,1.4348441]
[1643439450476,6.0,95.271,95.223,1.4348441]
[1643439450677,6.0,95.271,95.221,1.4348441]
[1643439451179,26.17602341,95.27,95.222,1.4348441]
[1643439451380,26.17602341,95.27,95.224,1.4348441]
[1643439451578,26.17602341,95.27,95.22,1.4348441]
[1643439451799,6.0,95.27,95.22,1.4348441]
[1643439451999,24.324,95.28,95.23,6.0]
[1643439452200,15.06,95.32,95.23,14.95]
[1643439452401,48.2189,95.319,95.23,14.95]
[1643439452698,6.0,95.309,95.238,6.0]
[1643439452900,6.0,95.309,95.24,6.0]
[1643439453101,23.3127,95.319,95.249,6.0]
[1643439453299,15.751,95.33,95.25,0.25]
[1643439453499,6.0,95.32,95.258,6.0]
[1643439453702,6.0,95.32,95.256,1.4348441]
[1643439453901,24.488,95.359,95.251,2.51199237]
[1643439453902,20.42778695,95.358,95.268,104.6]
[1643439454100,20.42778695,95.358,95.278,6.0]
[1643439454301,20.42778695,95.358,95.279,0.25]
[1643439454501,20.42778695,95.358,95.279,6.25]
[1643439454801,45.7589,95.395,95.28,3.94683647]
[1643439455001,6.0,95.385,95.29,6.0]
[1643439455501,6.0,95.385,95.296,6.0]
[1643439455801,16.87026244,95.384,95.297,35.67351243]
[1643439456003,6.0,95.374,95.297,35.67351243]
[1643439456206,6.0,95.374,95.291,0.25]
[1643439456402,6.0,95.373,95.285,0.25]
[1643439456802,0.25,95.372,95.285,1.4348441]
[1643439457003,6.0,95.373,95.295,6.0]
[1643439457204,15.06,95.4,95.295,18.05]
[1643439457405,15.06,95.4,95.305,1.4348441]
[1643439457603,15.06,95.4,95.296,6.25]
[1643439457604,6.0,95.385,95.315,6.0]
[1643439458004,6.0,95.384,95.3,1.4348441]
[1643439458303,20.83280032,95.383,95.304,0.25]
[1643439458503,6.0,95.373,95.304,0.25]
[1643439458903,6.25,95.372,95.304,0.25]
[1643439459304,6.25,95.372,95.302,0.25]
[1643439459705,6.25,95.372,95.301,34.10097714]
[1643439459903,6.25,95.372,95.302,0.25]
[1643439464106,6.25,95.372,95.301,34.10097714]
[1643439464306,6.25,95.372,95.278,1.4348441]
[1643439464507,6.0,95.37,95.276,1.4348441]
[1643439464707,6.0,95.362,95.276,1.4348441]
[1643439464907,0.25,95.361,95.277,0.25]
[1643439465109,6.0,95.359,95.285,6.0]
[1643439465311,0.25,95.358,95.286,0.25]
[1643439465512,6.0,95.35,95.286,6.25]
[1643439466010,0.25,95.349,95.293,41.44497808]
[1643439466810,0.25,95.359,95.293,41.44497808]
[1643439467009,6.0,95.35,95.293,41.44497808]
[1643439467409,0.25,95.349,95.293,41.44497808]
[1643439469011,0.25,95.349,95.274,1.4348441]
[1643439469209,23.7094,95.349,95.275,1.4348441]
[1643439469410,23.7094,95.349,95.271,2.51199237]
[1643439469611,6.0,95.339,95.271,2.51199237]
[1643439469810,0.25,95.338,95.271,2.51199237]
[1643439470212,20.83280032,95.338,95.272,38.69401063]
[1643439470612,6.0,95.328,95.272,38.69401063]
[1643439470819,0.25,95.327,95.272,38.69401063]
[1643439471113,6.25,95.327,95.261,1.4348441]
[1643439471315,31.1764,95.327,95.253,1.4348441]
[1643439471712,31.1764,95.327,95.248,1.4348441]
[1643439471910,31.1764,95.327,95.249,48.10938604]
[1643439472112,31.1764,95.327,95.25,1.4348441]
[1643439472311,6.25,95.327,95.252,1.4348441]
[1643439472512,6.25,95.327,95.262,6.0]
[1643439473012,6.25,95.327,95.258,1.4348441]
[1643439473312,6.25,95.327,95.259,1.4348441]
[1643439474512,6.25,95.327,95.256,1.4348441]
[1643439474915,6.0,95.326,95.251,1.4348441]
[1643439475115,6.0,95.317,95.251,1.4348441]
[1643439475316,0.25,95.316,95.251,1.4348441]
[1643439475515,6.25,95.316,95.251,1.4348441]
[1643439475916,22.7671,95.315,95.251,1.4348441]
[1643439476116,1.07277516,95.314,95.252,44.09432567]
[1643439476318,1.32277516,95.314,95.254,1.4348441]
[1643439476720,6.0,95.304,95.254,0.9348441]
[1643439477017,6.0,95.304,95.252,44.09432567]
[1643439477219,1.07277516,95.314,95.252,44.09432567]
[1643439477419,1.07277516,95.314,95.262,6.0]
[1643439477619,23.3618,95.336,95.262,6.0]
[1643439477820,23.3618,95.336,95.263,0.25]
[1643439478021,6.0,95.326,95.263,0.25]
[1643439478222,23.9016,95.349,95.264,2.51199237]
[1643439478522,0.25,95.348,95.264,11.29199237]
[1643439478721,0.25,95.348,95.274,6.0]
[1643439478922,24.0131,95.369,95.275,42.48574274]
[1643439479121,24.0131,95.369,95.285,6.0]
[1643439479323,24.0131,95.369,95.286,0.25]
[1643439479723,24.0131,95.369,95.286,2.76199237]
[1643439479923,24.0131,95.369,95.287,2.51199237]
[1643439480125,24.0131,95.369,95.297,6.0]
[1643439480324,24.0131,95.369,95.298,0.25]
[1643439480526,15.9882,95.414,95.298,2.76199237]
[1643439480728,21.89668523,95.437,95.31,15.06]
[1643439480927,22.8629,95.473,95.32,0.31376624]
[1643439481126,2.90830904,95.482,95.351,0.3048021]
[1643439481127,65.49164749,95.472,95.351,0.3048021]
[1643439481328,17.29194749,95.472,95.351,11.9148021]
[1643439481527,17.29194749,95.472,95.361,6.0]
[1643439481928,17.29194749,95.472,95.362,8.76199237]
[1643439482125,17.29194749,95.472,95.37,6.0]
[1643439482326,17.29194749,95.472,95.371,45.84909562]
[1643439482626,6.0,95.462,95.381,6.0]
[1643439482826,6.0,95.462,95.382,0.25]
[1643439483026,6.0,95.462,95.382,6.25]
[1643439484126,0.25,95.461,95.382,6.25]
[1643439485226,0.25,95.461,95.382,0.25]
[1643439485454,0.25,95.461,95.393,43.34912632]
[1643439485654,6.0,95.462,95.393,53.06912632]
[1643439485855,6.0,95.462,95.394,0.25]
[1643439487059,0.25,95.461,95.394,0.25]
[1643439488059,0.25,95.461,95.393,43.34912632]
[1643439489861,0.25,95.461,95.394,0.25]
[1643439491059,0.25,95.461,95.393,43.34912632]
[1643439491261,0.25,95.461,95.394,0.25]
[1643439491558,0.25,95.461,95.394,10.47]
[1643439493761,6.0,95.469,95.394,10.47]
[1643439493963,0.25,95.468,95.394,10.47]
[1643439494962,0.25,95.468,95.404,6.0]
[1643439495362,6.0,95.469,95.405,0.25]
[1643439495764,6.0,95.469,95.393,43.34912632]
[1643439496165,6.0,95.467,95.394,0.25]
[1643439496665,0.25,95.466,95.356,10.68819962]
[1643439496868,27.92809142,95.466,95.34,15.06]
[1643439497065,6.0,95.456,95.35,6.0]
[1643439497267,15.06,95.45,95.345,6.0]
[1643439497468,24.0063,95.449,95.345,6.0]
[1643439497666,17.5077731,95.439,95.346,46.66650518]
[1643439497870,0.25,95.438,95.346,46.66650518]
[1643439498067,0.25,95.438,95.356,6.0]
[1643439498267,0.25,95.438,95.357,0.25]
[1643439498466,6.25,95.438,95.357,0.25]
[1643439498867,6.0,95.429,95.357,0.25]
[1643439499066,6.0,95.428,95.357,0.25]
[1643439499267,6.25,95.428,95.357,0.25]
[1643439499467,6.25,95.428,95.346,46.66650518]
[1643439499670,6.25,95.428,95.357,0.25]
[1643439499872,0.25,95.428,95.357,0.25]
[1643439500070,0.25,95.428,95.346,46.66650518]
[1643439500268,24.4602,95.428,95.347,0.25]
[1643439500669,6.0,95.418,95.347,0.25]
[1643439500869,4.39780238,95.417,95.347,0.25]
[1643439501067,0.25,95.417,95.347,0.25]
[1643439501268,6.0,95.407,95.347,0.25]
[1643439501468,0.25,95.417,95.347,0.25]
[1643439501667,0.25,95.417,95.346,46.66650518]
[1643439502067,6.0,95.414,95.346,46.66650518]
[1643439502267,0.25,95.413,95.312,23.4523]
[1643439502470,6.0,95.407,95.283,15.3441]
[1643439502673,6.0,95.407,95.292,104.6]
[1643439502968,6.0,95.4,95.292,104.6]
[1643439503167,47.1051,95.399,95.292,104.6]
[1643439503367,6.0151111,95.398,95.293,43.47139375]
[1643439503569,6.0,95.388,95.303,6.0]
[1643439503772,0.25,95.387,95.304,0.25]
[1643439504372,0.25,95.387,95.311,40.64306303]
[1643439504571,0.25,95.387,95.321,6.0]
[1643439505573,0.25,95.387,95.322,0.25]
[1643439506775,0.25,95.387,95.312,0.25]
[1643439507378,2.95669142,95.386,95.312,0.25]
[1643439507582,6.0,95.376,95.312,0.25]
[1643439507878,15.89046438,95.375,95.312,0.25]
[1643439508078,6.0,95.365,95.312,0.25]
[1643439508278,0.25,95.364,95.311,40.64306303]
[1643439512409,6.0,95.365,95.311,40.64306303]
[1643439514111,0.25,95.364,95.311,40.64306303]
[1643439515114,0.25,95.364,95.312,0.25]
[1643439515311,6.0,95.375,95.312,0.25]
[1643439515312,0.25,95.374,95.312,0.25]
[1643439515712,2.95669142,95.412,95.321,6.0]
[1643439516012,6.0,95.389,95.331,6.0]
[1643439516414,6.0,95.415,95.332,0.25]
[1643439516615,6.0,95.415,95.332,6.25]
[1643439516812,15.67800302,95.414,95.333,33.22664414]
[1643439517012,6.0,95.404,95.343,6.0]
[1643439517413,0.25,95.403,95.344,0.25]
[1643439518414,6.0,95.411,95.344,0.25]
[1643439518815,0.25,95.41,95.344,0.25]
[1643439520915,0.25,95.414,95.344,0.25]